[Event "*** Titled Tuesday Blitz"]
[Site "Chess.com"]
[Date "2020.04.07"]
[Round "9"]
[White "ecwinslow"]
[Black "Eltarolo"]
[Result "0-1"]
[WhiteElo "2168"]
[BlackElo "2312"]
[TimeControl "180+1"]
[EndTime "14:48:58 PDT"]
[Termination "Eltarolo won on time"]

1. e4 {[%clk 0:03:00.9]} 1... c5 {[%clk 0:03:00]} 2. Nf3 {[%clk 0:02:58.9]} 2...
d6 {[%clk 0:03:00.3]} 3. d4 {[%clk 0:02:58]} 3... cxd4 {[%clk 0:03:01.2]} 4.
Nxd4 {[%clk 0:02:58.3]} 4... Nf6 {[%clk 0:03:01.9]} 5. Nc3 {[%clk 0:02:58.6]}
5... g6 {[%clk 0:03:02.6]} 6. Be3 {[%clk 0:02:57.4]} 6... Bg7 {[%clk 0:03:03.2]}
7. f3 {[%clk 0:02:57.7]} 7... O-O {[%clk 0:03:03.8]} 8. Qd2 {[%clk 0:02:57.8]}
8... Nc6 {[%clk 0:03:04.4]} 9. Bc4 {[%clk 0:02:57.9]} 9... Bd7 {[%clk
0:03:04.3]} 10. O-O-O {[%clk 0:02:56.6]} 10... Rb8 {[%clk 0:03:02.6]} 11. h4
{[%clk 0:02:47]} 11... b5 {[%clk 0:03:02.2]} 12. Bb3 {[%clk 0:02:40.8]} 12...
Ne5 {[%clk 0:03:02.1]} 13. h5 {[%clk 0:02:35.7]} 13... Nc4 {[%clk 0:03:02.3]}
14. Bxc4 {[%clk 0:02:34.5]} 14... bxc4 {[%clk 0:03:03.2]} 15. Kb1 {[%clk
0:02:30.6]} 15... Qb6 {[%clk 0:03:02.6]} 16. Qc1 {[%clk 0:02:29.8]} 16... Qb4
{[%clk 0:03:00.6]} 17. Ka1 {[%clk 0:02:25.5]} 17... Nxh5 {[%clk 0:02:42.9]} 18.
g4 {[%clk 0:02:20.8]} 18... Nf6 {[%clk 0:02:42.3]} 19. a3 {[%clk 0:02:17]} 19...
Qb7 {[%clk 0:02:35.5]} 20. Bh6 {[%clk 0:02:05.1]} 20... Rfc8 {[%clk 0:01:56.2]}
21. Bxg7 {[%clk 0:01:46.7]} 21... Kxg7 {[%clk 0:01:57.1]} 22. Nd5 {[%clk
0:01:45.9]} 22... Be6 {[%clk 0:01:06.7]} 23. Nxf6 {[%clk 0:01:36]} 23... exf6
{[%clk 0:01:07.6]} 24. Qh6+ {[%clk 0:01:31.7]} 24... Kg8 {[%clk 0:01:07.7]} 25.
Qxh7+ {[%clk 0:01:30.2]} 25... Kf8 {[%clk 0:01:07.9]} 26. Nxe6+ {[%clk
0:01:27.8]} 26... Ke7 {[%clk 0:00:54.2]} 27. Rb1 {[%clk 0:01:23]} 27... Rh8
{[%clk 0:00:43.6]} 28. Qxh8 {[%clk 0:01:22.5]} 28... Rxh8 {[%clk 0:00:42.8]} 29.
Rxh8 {[%clk 0:01:23.2]} 29... Kxe6 {[%clk 0:00:41.6]} 30. Rd1 {[%clk 0:01:12]}
30... Qb6 {[%clk 0:00:38.4]} 31. c3 {[%clk 0:01:08.1]} 31... Ke7 {[%clk
0:00:32.1]} 32. Rh2 {[%clk 0:01:03.8]} 32... Qe3 {[%clk 0:00:31.7]} 33. Rf1
{[%clk 0:00:59.7]} 33... Qd3 {[%clk 0:00:30.5]} 34. Rhf2 {[%clk 0:00:55.7]}
34... Kd7 {[%clk 0:00:27.2]} 35. Ka2 {[%clk 0:00:50.8]} 35... Kc6 {[%clk
0:00:26.3]} 36. a4 {[%clk 0:00:49.6]} 36... Kb6 {[%clk 0:00:24.9]} 37. Ka3
{[%clk 0:00:42.5]} 37... Ka5 {[%clk 0:00:22.9]} 38. Re1 {[%clk 0:00:33.4]} 38...
Kb6 {[%clk 0:00:18.4]} 39. f4 {[%clk 0:00:27.9]} 39... Qg3 {[%clk 0:00:15.2]}
40. Ref1 {[%clk 0:00:26]} 40... Qxg4 {[%clk 0:00:15.4]} 41. Rd2 {[%clk
0:00:25.7]} 41... Qe6 {[%clk 0:00:13.6]} 42. f5 {[%clk 0:00:20.6]} 42... Qe5
{[%clk 0:00:12]} 43. Rfd1 {[%clk 0:00:19.8]} 43... Kc6 {[%clk 0:00:08.4]} 44.
fxg6 {[%clk 0:00:18.6]} 44... fxg6 {[%clk 0:00:08.4]} 45. Rd4 {[%clk 0:00:18.6]}
45... Qc5+ {[%clk 0:00:06.9]} 46. Ka2 {[%clk 0:00:18.6]} 46... Kc7 {[%clk
0:00:04]} 47. Rd5 {[%clk 0:00:17.6]} 47... Qc6 {[%clk 0:00:04.4]} 48. R1d4
{[%clk 0:00:17.1]} 48... Qxa4+ {[%clk 0:00:04.2]} 49. Kb1 {[%clk 0:00:17.5]}
49... Qc6 {[%clk 0:00:04]} 50. Ra5 {[%clk 0:00:16.5]} 50... a6 {[%clk
0:00:02.8]} 51. Rad5 {[%clk 0:00:16.2]} 51... g5 {[%clk 0:00:03.4]} 52. Kc1
{[%clk 0:00:16]} 52... Kb6 {[%clk 0:00:03.9]} 53. Kd2 {[%clk 0:00:15.5]} 53...
Kc7 {[%clk 0:00:04.3]} 54. Ke2 {[%clk 0:00:14.9]} 54... Kd7 {[%clk 0:00:04.6]}
55. Kf3 {[%clk 0:00:13.3]} 55... Ke6 {[%clk 0:00:05]} 56. Kg4 {[%clk 0:00:11.8]}
56... Ke7 {[%clk 0:00:05.1]} 57. Kf5 {[%clk 0:00:10.6]} 57... Qd7+ {[%clk
0:00:05.5]} 58. Kg6 {[%clk 0:00:10.6]} 58... Qe8+ {[%clk 0:00:05.9]} 59. Kg7
{[%clk 0:00:08.5]} 59... Qf7+ {[%clk 0:00:05.7]} 60. Kh6 {[%clk 0:00:08.9]}
60... Qf8+ {[%clk 0:00:05.4]} 61. Kg6 {[%clk 0:00:09]} 61... Qg8+ {[%clk
0:00:05.5]} 62. Kf5 {[%clk 0:00:08.4]} 62... Qh7+ {[%clk 0:00:04.9]} 63. Kg4
{[%clk 0:00:08.4]} 63... Qh4+ {[%clk 0:00:05]} 64. Kf3 {[%clk 0:00:09.1]} 64...
Qh3+ {[%clk 0:00:05.1]} 65. Ke2 {[%clk 0:00:09.2]} 65... Qh2+ {[%clk 0:00:05]}
66. Kd1 {[%clk 0:00:09.5]} 66... Qg1+ {[%clk 0:00:02.9]} 67. Kc2 {[%clk
0:00:09.3]} 67... Qg2+ {[%clk 0:00:02.7]} 68. Kb1 {[%clk 0:00:09.3]} 68... Qh1+
{[%clk 0:00:01.7]} 69. Ka2 {[%clk 0:00:09.9]} 69... Kf7 {[%clk 0:00:01.4]} 70.
Rxd6 {[%clk 0:00:09.6]} 70... Kg6 {[%clk 0:00:02.1]} 71. e5 {[%clk 0:00:09.3]}
71... Kh5 {[%clk 0:00:01.5]} 72. Rxf6 {[%clk 0:00:08.9]} 72... Qh2 {[%clk
0:00:02.3]} 73. e6 {[%clk 0:00:08.1]} 73... Qc2 {[%clk 0:00:02.5]} 74. e7 {[%clk
0:00:03]} 74... Qb3+ {[%clk 0:00:02.9]} 75. Kb1 {[%clk 0:00:03.2]} 75... Qb5
{[%clk 0:00:02.8]} 76. Re6 {[%clk 0:00:02.2]} 76... Qe8 {[%clk 0:00:02.9]} 77.
Rd8 {[%clk 0:00:02.3]} 77... Qf7 {[%clk 0:00:02.4]} 78. e8=Q {[%clk 0:00:01.1]}
78... Qxe8 {[%clk 0:00:02.7]} 0-1

[Event "*** Titled Tuesday Blitz"]
[Site "Chess.com"]
[Date "2020.04.07"]
[Round "9"]
[White "anon132639"]
[Black "Sam_ChessMood"]
[Result "1-0"]
[WhiteElo "2683"]
[BlackElo "2912"]
[TimeControl "180+1"]
[EndTime "14:49:01 PDT"]
[Termination "anon132639 won on time"]

1. d4 {[%clk 0:03:00.9]} 1... Nf6 {[%clk 0:02:59.3]} 2. c4 {[%clk 0:03:01.3]}
2... e6 {[%clk 0:02:58.4]} 3. Nf3 {[%clk 0:03:01.8]} 3... d5 {[%clk 0:02:58.5]}
4. g3 {[%clk 0:02:57.1]} 4... dxc4 {[%clk 0:02:48.1]} 5. Bg2 {[%clk 0:02:56.9]}
5... Nc6 {[%clk 0:02:48.3]} 6. Qa4 {[%clk 0:02:56.5]} 6... Bb4+ {[%clk
0:02:39.6]} 7. Bd2 {[%clk 0:02:56.7]} 7... Nd5 {[%clk 0:02:39.5]} 8. Bxb4 {[%clk
0:02:57.2]} 8... Nxb4 {[%clk 0:02:39.6]} 9. O-O {[%clk 0:02:57.2]} 9... Rb8
{[%clk 0:02:34.1]} 10. Na3 {[%clk 0:02:17.5]} 10... O-O {[%clk 0:02:32.3]} 11.
Qb5 {[%clk 0:02:17.6]} 11... b6 {[%clk 0:02:32.6]} 12. Qxc4 {[%clk 0:02:18]}
12... Ba6 {[%clk 0:02:32.2]} 13. Nb5 {[%clk 0:02:17.9]} 13... Qe8 {[%clk
0:02:29.6]} 14. a4 {[%clk 0:02:07.8]} 14... Nd5 {[%clk 0:02:10.5]} 15. Rfc1
{[%clk 0:01:19.6]} 15... Na5 {[%clk 0:01:55.8]} 16. Qc2 {[%clk 0:01:18.7]} 16...
Bxb5 {[%clk 0:01:50.9]} 17. axb5 {[%clk 0:01:18.2]} 17... Qxb5 {[%clk
0:01:50.8]} 18. e4 {[%clk 0:01:00.7]} 18... Nb4 {[%clk 0:01:48.8]} 19. Qd1
{[%clk 0:01:01]} 19... c5 {[%clk 0:00:51.6]} 20. dxc5 {[%clk 0:00:51.5]} 20...
bxc5 {[%clk 0:00:47.5]} 21. Qa4 {[%clk 0:00:43.8]} 21... Qxa4 {[%clk 0:00:25.6]}
22. Rxa4 {[%clk 0:00:44.7]} 22... Nb3 {[%clk 0:00:20.6]} 23. Rc3 {[%clk
0:00:37.8]} 23... Nc6 {[%clk 0:00:20.2]} 24. Bf1 {[%clk 0:00:33]} 24... Rfd8
{[%clk 0:00:16.8]} 25. Kg2 {[%clk 0:00:27.4]} 25... g6 {[%clk 0:00:16.5]} 26. h4
{[%clk 0:00:26.6]} 26... Ncd4 {[%clk 0:00:14.2]} 27. Ne5 {[%clk 0:00:16.9]}
27... Nd2 {[%clk 0:00:12.1]} 28. Rxc5 {[%clk 0:00:13.1]} 28... Rxb2 {[%clk
0:00:10.4]} 29. Bd3 {[%clk 0:00:10.1]} 29... f6 {[%clk 0:00:07.4]} 30. Nc4
{[%clk 0:00:10]} 30... Nxc4 {[%clk 0:00:07.2]} 31. Bxc4 {[%clk 0:00:08.2]} 31...
Rb7 {[%clk 0:00:04.9]} 32. Ra6 {[%clk 0:00:08.5]} 32... Rbd7 {[%clk 0:00:04.6]}
33. Bxe6+ {[%clk 0:00:07.7]} 33... Nxe6 {[%clk 0:00:04.5]} 34. Rxe6 {[%clk
0:00:08.6]} 34... Kg7 {[%clk 0:00:05]} 35. Ra6 {[%clk 0:00:09.1]} 35... Re8
{[%clk 0:00:04.7]} 36. Rcc6 {[%clk 0:00:09.2]} 36... Rf7 {[%clk 0:00:05]} 37.
Kf3 {[%clk 0:00:08.8]} 37... f5 {[%clk 0:00:04.5]} 38. exf5 {[%clk 0:00:05.9]}
38... Rxf5+ {[%clk 0:00:05.1]} 39. Kg4 {[%clk 0:00:05.7]} 39... h5+ {[%clk
0:00:04.3]} 40. Kh3 {[%clk 0:00:05.8]} 40... Rxf2 {[%clk 0:00:04.6]} 41. Rxg6+
{[%clk 0:00:05.1]} 41... Kf7 {[%clk 0:00:05]} 42. Rh6 {[%clk 0:00:04.5]} 42...
Re1 {[%clk 0:00:05]} 43. Rxa7+ {[%clk 0:00:04.3]} 43... Kg8 {[%clk 0:00:05.4]}
44. Rxh5 {[%clk 0:00:04.6]} 44... Re3 {[%clk 0:00:04.9]} 45. Rg5+ {[%clk
0:00:04.7]} 45... Kf8 {[%clk 0:00:04.1]} 46. Kg4 {[%clk 0:00:04.2]} 46... Rf1
{[%clk 0:00:03.7]} 47. Kh5 {[%clk 0:00:04.4]} 47... Rf7 {[%clk 0:00:03.4]} 48.
Rxf7+ {[%clk 0:00:04.3]} 48... Kxf7 {[%clk 0:00:04]} 49. Kg4 {[%clk 0:00:04.2]}
49... Re2 {[%clk 0:00:03.9]} 50. Rf5+ {[%clk 0:00:04.7]} 50... Kg6 {[%clk
0:00:02.9]} 51. Rf4 {[%clk 0:00:05.6]} 51... Kh6 {[%clk 0:00:03.1]} 52. Rf6+
{[%clk 0:00:05.4]} 52... Kg7 {[%clk 0:00:03.5]} 53. Kg5 {[%clk 0:00:05.9]} 53...
Re5+ {[%clk 0:00:03.2]} 54. Rf5 {[%clk 0:00:06.4]} 54... Re3 {[%clk 0:00:03.5]}
55. g4 {[%clk 0:00:06.9]} 55... Ra3 {[%clk 0:00:02.9]} 56. h5 {[%clk 0:00:07.6]}
56... Ra6 {[%clk 0:00:02.9]} 57. Rd5 {[%clk 0:00:07]} 57... Rb6 {[%clk
0:00:02.9]} 58. Rd7+ {[%clk 0:00:07.4]} 58... Kg8 {[%clk 0:00:03.5]} 59. h6
{[%clk 0:00:07.3]} 59... Rb5+ {[%clk 0:00:04.1]} 60. Kg6 {[%clk 0:00:07.7]}
60... Rb6+ {[%clk 0:00:04.6]} 61. Kh5 {[%clk 0:00:08.5]} 61... Rb1 {[%clk
0:00:04.5]} 62. g5 {[%clk 0:00:08.5]} 62... Rb6 {[%clk 0:00:04.5]} 63. Rc7
{[%clk 0:00:07.4]} 63... Ra6 {[%clk 0:00:04.1]} 64. g6 {[%clk 0:00:07.8]} 64...
Ra5+ {[%clk 0:00:04.3]} 65. Kg4 {[%clk 0:00:08.4]} 65... Ra4+ {[%clk 0:00:04.8]}
66. Kf5 {[%clk 0:00:09]} 66... Ra5+ {[%clk 0:00:05.1]} 67. Ke4 {[%clk
0:00:09.6]} 67... Ra4+ {[%clk 0:00:05.1]} 68. Kd5 {[%clk 0:00:10.1]} 68... Ra8
{[%clk 0:00:05.2]} 69. Kd6 {[%clk 0:00:09.3]} 69... Kh8 {[%clk 0:00:05.1]} 70.
Ke6 {[%clk 0:00:08.3]} 70... Ra6+ {[%clk 0:00:05.2]} 71. Kf7 {[%clk 0:00:07]}
71... Ra8 {[%clk 0:00:05]} 72. g7+ {[%clk 0:00:05.3]} 72... Kh7 {[%clk
0:00:04.5]} 73. Re7 {[%clk 0:00:06.2]} 73... Rf8+ {[%clk 0:00:01.9]} 74. Kxf8
{[%clk 0:00:05.1]} 1-0

[Event "*** Titled Tuesday Blitz"]
[Site "Chess.com"]
[Date "2020.04.07"]
[Round "9"]
[White "Ba_clbaf_osed_ingo_3v21"]
[Black "Batica1984"]
[Result "0-1"]
[WhiteElo "2689"]
[BlackElo "2851"]
[TimeControl "180+1"]
[EndTime "14:49:01 PDT"]
[Termination "Batica1984 won by resignation"]

1. d4 {[%clk 0:03:00.9]} 1... Nf6 {[%clk 0:02:59.1]} 2. c4 {[%clk 0:02:56.6]}
2... c5 {[%clk 0:02:58.2]} 3. d5 {[%clk 0:02:55.1]} 3... b5 {[%clk 0:02:57.7]}
4. cxb5 {[%clk 0:02:54.7]} 4... a6 {[%clk 0:02:57.9]} 5. bxa6 {[%clk 0:02:55]}
5... g6 {[%clk 0:02:58.3]} 6. Nc3 {[%clk 0:02:55]} 6... Bxa6 {[%clk 0:02:58.8]}
7. Nf3 {[%clk 0:02:55.1]} 7... d6 {[%clk 0:02:52]} 8. e4 {[%clk 0:02:54.4]} 8...
Bxf1 {[%clk 0:02:52]} 9. Kxf1 {[%clk 0:02:55.3]} 9... Bg7 {[%clk 0:02:52.7]} 10.
g3 {[%clk 0:02:55]} 10... O-O {[%clk 0:02:53.6]} 11. Kg2 {[%clk 0:02:55.3]}
11... Qb6 {[%clk 0:02:53.4]} 12. Qc2 {[%clk 0:02:54.1]} 12... Na6 {[%clk
0:02:52.8]} 13. Bf4 {[%clk 0:02:32.9]} 13... Nb4 {[%clk 0:02:44]} 14. Qe2 {[%clk
0:02:31.4]} 14... Qa6 {[%clk 0:02:42.2]} 15. Qxa6 {[%clk 0:02:27.6]} 15... Rxa6
{[%clk 0:02:43.1]} 16. Rhd1 {[%clk 0:02:12.2]} 16... c4 {[%clk 0:02:22.3]} 17.
Nd4 {[%clk 0:01:27.5]} 17... Nd3 {[%clk 0:02:20.3]} 18. b3 {[%clk 0:01:14.4]}
18... Ng4 {[%clk 0:01:56.6]} 19. Be3 {[%clk 0:01:00.3]} 19... Nxe3+ {[%clk
0:01:52.1]} 20. fxe3 {[%clk 0:01:00.3]} 20... Rc8 {[%clk 0:01:41.4]} 21. bxc4
{[%clk 0:00:57.5]} 21... Ne5 {[%clk 0:01:36.8]} 22. a4 {[%clk 0:00:24.5]} 22...
Nxc4 {[%clk 0:01:35]} 23. Kf3 {[%clk 0:00:19]} 23... Nxe3 {[%clk 0:01:31.7]} 24.
Kxe3 {[%clk 0:00:18]} 24... Rxc3+ {[%clk 0:01:30.9]} 25. Rd3 {[%clk 0:00:18.5]}
25... Rc4 {[%clk 0:01:22]} 26. a5 {[%clk 0:00:17.9]} 26... Bh6+ {[%clk
0:01:04.2]} 27. Ke2 {[%clk 0:00:17.2]} 27... Bg7 {[%clk 0:01:03.5]} 28. Ke3
{[%clk 0:00:16.9]} 28... e6 {[%clk 0:00:52.9]} 29. dxe6 {[%clk 0:00:15.7]} 29...
fxe6 {[%clk 0:00:53.8]} 30. Ra2 {[%clk 0:00:15.1]} 30... d5 {[%clk 0:00:52.8]}
31. exd5 {[%clk 0:00:13.9]} 31... exd5 {[%clk 0:00:53.7]} 32. Nb5 {[%clk
0:00:09.3]} 32... Rc5 {[%clk 0:00:51.3]} 33. Rb3 {[%clk 0:00:06.4]} 33... h5
{[%clk 0:00:45.6]} 34. Kd3 {[%clk 0:00:06.4]} 34... Kh7 {[%clk 0:00:40.9]} 35.
Ra4 {[%clk 0:00:04.5]} 35... g5 {[%clk 0:00:38.5]} 36. h3 {[%clk 0:00:04.8]}
36... Kg6 {[%clk 0:00:37.8]} 37. g4 {[%clk 0:00:05.1]} 37... h4 {[%clk
0:00:37.5]} 38. Raa3 {[%clk 0:00:04.2]} 38... Bf6 {[%clk 0:00:36.6]} 39. Ra4
{[%clk 0:00:04.3]} 39... Kf7 {[%clk 0:00:35]} 40. Nd4 {[%clk 0:00:04.4]} 40...
Rcxa5 {[%clk 0:00:26.9]} 41. Rb7+ {[%clk 0:00:04.4]} 41... Kg6 {[%clk
0:00:26.3]} 42. Rxa5 {[%clk 0:00:04.4]} 42... Rxa5 {[%clk 0:00:26.4]} 43. Ne6
{[%clk 0:00:02.8]} 43... Ra3+ {[%clk 0:00:26.4]} 44. Ke2 {[%clk 0:00:03.2]}
44... Ra8 {[%clk 0:00:25.3]} 45. Kf3 {[%clk 0:00:02.5]} 45... Re8 {[%clk
0:00:24.5]} 46. Nc5 {[%clk 0:00:02.4]} 46... Bd4 {[%clk 0:00:22.4]} 47. Nd7
{[%clk 0:00:02.3]} 47... Re3+ {[%clk 0:00:22.4]} 48. Kg2 {[%clk 0:00:02.6]}
48... Bg7 {[%clk 0:00:22.3]} 49. Rb6+ {[%clk 0:00:02.3]} 49... Kf7 {[%clk
0:00:21.6]} 50. Rd6 {[%clk 0:00:02.1]} 50... d4 {[%clk 0:00:21.2]} 51. Rd5
{[%clk 0:00:01.9]} 51... Kg6 {[%clk 0:00:20.1]} 52. Nc5 {[%clk 0:00:01.7]} 52...
Rg3+ {[%clk 0:00:19.9]} 53. Kf2 {[%clk 0:00:01.7]} 53... Rxh3 {[%clk 0:00:19.1]}
54. Ne6 {[%clk 0:00:02.4]} 54... d3 {[%clk 0:00:17.6]} 55. Nc5 {[%clk 0:00:02]}
55... Rh2+ {[%clk 0:00:17.1]} 56. Kf3 {[%clk 0:00:02.4]} 56... Rh3+ {[%clk
0:00:17.3]} 57. Ke4 {[%clk 0:00:02.6]} 57... Rg3 {[%clk 0:00:17.6]} 58. Nxd3
{[%clk 0:00:02.7]} 58... Rxg4+ {[%clk 0:00:17.8]} 59. Kf3 {[%clk 0:00:03.6]}
59... Ra4 {[%clk 0:00:17.7]} 60. Rc5 {[%clk 0:00:03]} 60... Bf6 {[%clk
0:00:17.9]} 61. Nf2 {[%clk 0:00:01.4]} 61... Kh5 {[%clk 0:00:17.5]} 62. Kg2
{[%clk 0:00:02.3]} 62... Ra2 {[%clk 0:00:17.1]} 63. Rc6 {[%clk 0:00:02.6]} 63...
Bd4 {[%clk 0:00:17.1]} 64. Kh3 {[%clk 0:00:03.5]} 64... Bxf2 {[%clk 0:00:14.6]}
65. Rc2 {[%clk 0:00:02.2]} 65... Ra3+ {[%clk 0:00:14.1]} 0-1

[Event "*** Titled Tuesday Blitz"]
[Site "Chess.com"]
[Date "2020.04.07"]
[Round "9"]
[White "norwaytoadog"]
[Black "tamarozi99"]
[Result "0-1"]
[WhiteElo "2256"]
[BlackElo "1965"]
[TimeControl "180+1"]
[EndTime "14:49:08 PDT"]
[Termination "tamarozi99 won by checkmate"]

1. e4 {[%clk 0:03:00.7]} 1... c5 {[%clk 0:02:58.2]} 2. Nf3 {[%clk 0:02:59.9]}
2... Nc6 {[%clk 0:02:57.8]} 3. Bb5 {[%clk 0:02:59.5]} 3... g6 {[%clk 0:02:57.1]}
4. Bxc6 {[%clk 0:02:58.8]} 4... bxc6 {[%clk 0:02:56.5]} 5. O-O {[%clk
0:02:58.3]} 5... Bg7 {[%clk 0:02:55.9]} 6. Re1 {[%clk 0:02:57.5]} 6... Nf6
{[%clk 0:02:55.9]} 7. e5 {[%clk 0:02:54.7]} 7... Nd5 {[%clk 0:02:55.9]} 8. c4
{[%clk 0:02:51.8]} 8... Nc7 {[%clk 0:02:53]} 9. d4 {[%clk 0:02:51.3]} 9... cxd4
{[%clk 0:02:52.6]} 10. Qxd4 {[%clk 0:02:51.1]} 10... O-O {[%clk 0:02:51.7]} 11.
Nc3 {[%clk 0:02:42.1]} 11... d6 {[%clk 0:02:44.7]} 12. Qh4 {[%clk 0:02:36.6]}
12... dxe5 {[%clk 0:02:33.8]} 13. Nxe5 {[%clk 0:02:31.8]} 13... Bb7 {[%clk
0:02:22.2]} 14. Bh6 {[%clk 0:02:18.8]} 14... c5 {[%clk 0:02:13.5]} 15. Rad1
{[%clk 0:01:53.7]} 15... Qc8 {[%clk 0:02:00.8]} 16. Bxg7 {[%clk 0:01:34.4]}
16... Kxg7 {[%clk 0:02:00.4]} 17. Rd7 {[%clk 0:01:20.5]} 17... Ne6 {[%clk
0:01:49.1]} 18. Qxe7 {[%clk 0:01:07.4]} 18... Bxg2 {[%clk 0:00:50.5]} 19. Nxf7
{[%clk 0:00:53.6]} 19... Qxd7 {[%clk 0:00:42.9]} 20. Qxd7 {[%clk 0:00:49]} 20...
Rxf7 {[%clk 0:00:43.1]} 21. Qxe6 {[%clk 0:00:46.4]} 21... Bb7 {[%clk 0:00:34.8]}
22. Nd5 {[%clk 0:00:41.7]} 22... Raf8 {[%clk 0:00:33.1]} 23. Qe5+ {[%clk
0:00:41.2]} 23... Kh6 {[%clk 0:00:28]} 24. f4 {[%clk 0:00:36.5]} 24... Bxd5
{[%clk 0:00:27]} 25. Qg5+ {[%clk 0:00:33.4]} 25... Kg7 {[%clk 0:00:25.3]} 26.
cxd5 {[%clk 0:00:32.7]} 26... Rxf4 {[%clk 0:00:25.5]} 27. Re7+ {[%clk
0:00:31.8]} 27... Kg8 {[%clk 0:00:17.6]} 28. Qh4 {[%clk 0:00:28.6]} 28... Rxh4
{[%clk 0:00:17]} 29. Rxa7 {[%clk 0:00:23.8]} 29... Rd4 {[%clk 0:00:16.8]} 30.
Rd7 {[%clk 0:00:20.7]} 30... Rf5 {[%clk 0:00:15.1]} 31. Rd8+ {[%clk 0:00:19.5]}
31... Kg7 {[%clk 0:00:15]} 32. d6 {[%clk 0:00:20]} 32... Rfd5 {[%clk 0:00:15.2]}
33. Kf2 {[%clk 0:00:19.5]} 33... Rxd6 {[%clk 0:00:15.2]} 34. Rb8 {[%clk
0:00:19.9]} 34... Rd3 {[%clk 0:00:13.6]} 35. a4 {[%clk 0:00:19.3]} 35... c4
{[%clk 0:00:11.9]} 36. a5 {[%clk 0:00:19]} 36... Rb3 {[%clk 0:00:12]} 37. Rc8
{[%clk 0:00:16.7]} 37... Rxb2+ {[%clk 0:00:10.3]} 38. Ke3 {[%clk 0:00:17.1]}
38... Rb3+ {[%clk 0:00:09.3]} 39. Ke4 {[%clk 0:00:17.3]} 39... c3 {[%clk
0:00:09.5]} 40. Ke5 {[%clk 0:00:17.4]} 40... Ra6 {[%clk 0:00:09]} 41. Rc7+
{[%clk 0:00:15.5]} 41... Kh6 {[%clk 0:00:07.8]} 42. Rc5 {[%clk 0:00:15.5]} 42...
c2 {[%clk 0:00:06.9]} 43. Rxc2 {[%clk 0:00:15.2]} 43... Rb5+ {[%clk 0:00:07.1]}
44. Kf4 {[%clk 0:00:14.5]} 44... Rbxa5 {[%clk 0:00:08]} 45. h4 {[%clk
0:00:13.8]} 45... Ra3 {[%clk 0:00:08.2]} 46. Rc4 {[%clk 0:00:13.1]} 46... Rf6+
{[%clk 0:00:07.5]} 47. Kg4 {[%clk 0:00:13]} 47... Rfa6 {[%clk 0:00:06.6]} 48.
Rf4 {[%clk 0:00:12.7]} 48... R6a4 {[%clk 0:00:06.5]} 49. Rxa4 {[%clk 0:00:11.2]}
49... Rxa4+ {[%clk 0:00:07.4]} 50. Kg3 {[%clk 0:00:11.2]} 50... Kh5 {[%clk
0:00:07.8]} 51. Kf3 {[%clk 0:00:11.3]} 51... Rxh4 {[%clk 0:00:08.4]} 52. Kg3
{[%clk 0:00:11.4]} 52... Ra4 {[%clk 0:00:09]} 53. Kh3 {[%clk 0:00:11.7]} 53...
g5 {[%clk 0:00:09.9]} 54. Kg3 {[%clk 0:00:11.9]} 54... g4 {[%clk 0:00:10]} 55.
Kh2 {[%clk 0:00:12]} 55... Kh4 {[%clk 0:00:10.4]} 56. Kg2 {[%clk 0:00:12.5]}
56... g3 {[%clk 0:00:10.4]} 57. Kf3 {[%clk 0:00:12.4]} 57... Kh3 {[%clk
0:00:10.7]} 58. Ke2 {[%clk 0:00:12.6]} 58... Kh2 {[%clk 0:00:11]} 59. Kf1 {[%clk
0:00:12.4]} 59... g2+ {[%clk 0:00:11.4]} 60. Ke2 {[%clk 0:00:12.8]} 60... g1=Q
{[%clk 0:00:12.3]} 61. Kd3 {[%clk 0:00:12.9]} 61... Ra3+ {[%clk 0:00:12.6]} 62.
Kc4 {[%clk 0:00:12.7]} 62... Qc1+ {[%clk 0:00:12.3]} 63. Kd5 {[%clk 0:00:12.6]}
63... Qe3 {[%clk 0:00:11.6]} 64. Kc4 {[%clk 0:00:12.4]} 64... Ra4+ {[%clk
0:00:11.8]} 65. Kd5 {[%clk 0:00:11.9]} 65... Qg5+ {[%clk 0:00:11.8]} 66. Ke6
{[%clk 0:00:11.5]} 66... Ra6+ {[%clk 0:00:11.9]} 67. Kf7 {[%clk 0:00:11.8]}
67... Qg6+ {[%clk 0:00:11.7]} 68. Kf8 {[%clk 0:00:11.8]} 68... Ra8+ {[%clk
0:00:10.9]} 69. Ke7 {[%clk 0:00:11.7]} 69... Ra7+ {[%clk 0:00:11.3]} 70. Kf8
{[%clk 0:00:11.5]} 70... Qf6+ {[%clk 0:00:10.8]} 71. Ke8 {[%clk 0:00:11.2]}
71... Qe7# {[%clk 0:00:10.9]} 0-1